fUSD/lending_fUSD_20241221
["ID","MTS","AMOUNT","RATE_DAILY","PERIOD"]
[346231933,1734791440111,-500.0,0.00019651,2]
[346231934,1734791440120,-500.0,0.00019651,2]
[346231935,1734791440130,-500.0,0.00019651,2]
[346231936,1734791440139,-500.0,0.00019651,2]
[346231937,1734791440148,-500.0,0.00019651,2]
[346231938,1734791440158,-500.0,0.00019651,2]
[346231939,1734791440167,-500.0,0.00019651,2]
[346231940,1734791440176,-142.71986572,0.00019651,2]
[346231941,1734791440188,-357.28013428,0.00019651,2]
[346231942,1734791440200,-500.0,0.00019651,2]
[346231943,1734791440209,-500.0,0.00019651,2]
[346231945,1734791440218,-519.14,0.00019651,2]
[346231946,1734791440227,-500.0,0.00019651,2]
[346231947,1734791440237,-500.0,0.00019651,2]
[346231948,1734791440247,-500.0,0.00019651,2]
[346231949,1734791440256,-500.0,0.00019651,2]
[346231950,1734791440265,-500.0,0.00019651,2]
[346231951,1734791440275,-542.9306834,0.00019651,2]
[346231952,1734791440285,-500.0,0.00019651,2]
[346231953,1734791440294,-500.0,0.00019651,2]
[346231954,1734791440304,-500.0,0.00019651,2]
[346231955,1734791440313,-500.0,0.00019651,2]
[346231956,1734791440322,-500.0,0.00019651,2]
[346231957,1734791440331,-500.0,0.00019651,2]
[346231958,1734791440340,-565.07,0.00019651,2]
[346231959,1734791440350,-500.0,0.00019651,2]
[346231960,1734791440359,-500.0,0.00019651,2]
[346231961,1734791440369,-500.0,0.00019651,2]
[346231962,1734791440378,-1267.98,0.00019651,2]
[346231963,1734791440387,-500.0,0.00019651,2]
[346231964,1734791440397,-500.0,0.00019651,2]
[346231965,1734791440406,-585.15,0.00019651,2]
[346231966,1734791440415,-500.0,0.00019651,2]
[346231967,1734791440425,-500.0,0.00019651,2]
[346231968,1734791440434,-500.0,0.00019651,2]
[346231969,1734791440443,-500.0,0.00019651,2]
[346231970,1734791440452,-500.0,0.00019651,2]
[346231971,1734791440462,-500.0,0.00019672,2]
[346231972,1734791440471,-500.0,0.00019672,2]
[346231973,1734791440480,-500.0,0.00019672,2]
[346231974,1734791440489,-500.0,0.00019672,2]
[346231975,1734791440499,-500.0,0.00019672,2]
[346231976,1734791440508,-500.0,0.00019672,2]
[346231977,1734791440517,-500.0,0.00019672,2]
[346231978,1734791440527,-448.339059,0.00019672,2]
[346231979,1734791440539,-500.0,0.00019672,2]
[346231980,1734791440548,-500.0,0.00019672,2]
[346231981,1734791440558,-500.0,0.00019672,2]
[346231982,1734791440567,-255.57933026,0.00019672,2]
[346231983,1734791440577,-500.0,0.00019672,2]
[346231984,1734791440586,-500.0,0.00019672,2]
[346231985,1734791440596,-173.43534511,0.00019672,2]
[346231986,1734791440605,-546.63353179,0.00019672,2]
[346231987,1734791440615,-500.0,0.00019672,2]
[346231988,1734791440624,-500.0,0.00019672,2]
[346231989,1734791440633,-500.0,0.00019672,2]
[346231990,1734791440643,-500.0,0.00019672,2]
[346231991,1734791440652,-500.0,0.00019672,2]
[346231992,1734791440661,-500.0,0.00019672,2]
[346231993,1734791440671,-500.0,0.00019672,2]
[346231994,1734791440680,-500.0,0.00019672,2]
[346231995,1734791440689,-500.0,0.00019672,2]
[346231996,1734791440699,-500.0,0.00019672,2]
[346231997,1734791440709,-500.0,0.00019672,2]
[346231998,1734791440718,-500.0,0.00019672,2]
[346231999,1734791440728,-500.0,0.00019672,2]
[346232000,1734791440738,-500.0,0.00019672,2]
[346232001,1734791440749,-500.0,0.00019672,2]
[346232002,1734791440760,-500.0,0.00019672,2]
[346232003,1734791440771,-500.0,0.00019672,2]
[346232004,1734791440781,-503.42,0.00019672,2]
[346232005,1734791440793,-500.0,0.00019672,2]
[346232006,1734791440803,-500.0,0.00019672,2]
[346232007,1734791440812,-500.0,0.00019672,2]
[346232008,1734791440822,-500.0,0.00019672,2]
[346232009,1734791440831,-500.0,0.00019672,2]
[346232010,1734791440841,-500.0,0.00019672,2]
[346232011,1734791440851,-495.14143843,0.00019672,2]
[346232012,1734791440861,-500.0,0.00019672,2]
[346232013,1734791440870,-500.0,0.00019672,2]
[346232014,1734791440879,-500.0,0.00019672,2]
[346232015,1734791440889,-500.0,0.00019672,2]
[346232016,1734791440899,-500.0,0.00019672,2]
[346232017,1734791440908,-500.0,0.00019672,2]
[346232018,1734791440918,-500.0,0.00019672,2]
[346232019,1734791440927,-500.0,0.00019672,2]
[346232020,1734791440937,-500.0,0.00019672,2]
[346232021,1734791440946,-500.0,0.00019672,2]
[346232022,1734791440956,-500.0,0.00019672,2]
[346232023,1734791440966,-516.21,0.00019672,2]
[346232024,1734791440975,-255.12577088,0.00019672,2]
[346232025,1734791440985,-1276.5,0.00019672,2]
[346232026,1734791440995,-1000.0,0.000197,7]
[346232027,1734791441004,-20354.21782001,0.00019704,2]
[346232028,1734791441014,-500.0,0.00019726,2]
[346232029,1734791441024,-500.0,0.00019726,2]
[346232030,1734791441033,-566.05,0.00019726,2]
[346232031,1734791441043,-500.0,0.00019726,2]
[346232032,1734791441053,-500.0,0.00019726,2]
[346232033,1734791441062,-236.876925,0.00019726,2]
[346232034,1734791441072,-500.0,0.00019726,2]
[346232035,1734791441084,-500.0,0.00019726,2]
[346232036,1734791441093,-500.0,0.00019726,2]
[346232037,1734791441102,-266.239136,0.00019726,2]
[346232038,1734791441112,-500.0,0.00019726,2]
[346232039,1734791441122,-583.64,0.00019726,2]
[346232040,1734791441138,-500.0,0.00019726,2]
[346232041,1734791441147,-2288.42,0.00019726,2]
[346232042,1734791441156,-671.32,0.00019726,2]
[346232043,1734791441166,-1191.88,0.00019726,2]
[346232044,1734791441175,-696.15,0.00019726,2]
[346232045,1734791441185,-673.22,0.00019726,2]
[346232046,1734791441198,-500.0,0.00019726,2]
[346232047,1734791441207,-500.0,0.00019726,2]
[346232048,1734791441217,-744.9,0.00019726,2]
[346232049,1734791441226,-777.19,0.00019726,2]
[346232050,1734791441237,-1181.02,0.00019726,2]
[346232051,1734791441247,-500.0,0.00019726,2]
[346232052,1734791441256,-1617.11,0.00019726,2]
[346232053,1734791441265,-4921.58,0.00019726,2]
[346232054,1734791441276,-3377.89,0.00019726,2]
[346232055,1734791441288,-2466.52,0.00019726,2]
[346232056,1734791441298,-500.0,0.00019726,2]
[346232057,1734791441307,-547.47,0.00019726,2]
[346232058,1734791441317,-2400.5,0.00019726,2]
[346232059,1734791441327,-788.31,0.00019726,2]
[346232060,1734791441337,-995.55,0.00019726,2]
[346232061,1734791441346,-1191.98,0.00019726,2]
[346232062,1734791441356,-1080.24,0.00019726,2]
[346232063,1734791441366,-500.0,0.00019726,2]
[346232064,1734791441376,-565.77,0.00019726,2]
[346232065,1734791441386,-1386.54,0.00019726,2]
[346232066,1734791441395,-1682.34,0.00019726,2]
[346232067,1734791441405,-500.0,0.00019726,2]
[346232068,1734791441415,-595.47,0.00019726,2]
[346232069,1734791441424,-3413.08,0.00019726,2]
[346232070,1734791441433,-500.0,0.00019726,2]
[346232071,1734791441443,-975.61,0.00019726,2]
[346232072,1734791441452,-527.91,0.00019726,2]
[346232073,1734791441462,-781.38,0.00019726,2]
[346232074,1734791441472,-500.0,0.00019726,2]
[346232075,1734791441482,-4440.36,0.00019726,2]
[346232076,1734791441491,-500.0,0.00019726,2]
[346232077,1734791441501,-919.65,0.00019726,2]
[346232078,1734791441510,-500.0,0.00019726,2]
[346232079,1734791441519,-500.0,0.00019726,2]
[346232080,1734791441530,-595.37,0.00019726,2]
[346232081,1734791441540,-500.0,0.00019726,2]
[346232082,1734791441551,-500.0,0.00019726,2]
[346232083,1734791441560,-500.0,0.00019729,2]
[346232084,1734791441570,-2139.494,0.00019742,2]
[346232085,1734791441580,-166.429,0.00019742,2]
[346232086,1734791441590,-20354.21782001,0.00019763,2]
[346232087,1734791441600,-152.78,0.00019769,2]
[346232088,1734791441610,-155.17745676,0.00019777,2]
[346232089,1734791441620,-500.0,0.00019779,2]
[346232090,1734791441629,-500.0,0.00019779,2]
[346232091,1734791441639,-500.0,0.00019779,2]
[346232092,1734791441649,-500.0,0.00019779,2]
[346232093,1734791441659,-500.0,0.00019779,2]
[346232094,1734791441668,-452.41,0.00019779,2]
[346232095,1734791441678,-518.05610847,0.00019779,2]
[346232096,1734791441688,-162.93527948,0.00019779,2]
[346232097,1734791441698,-500.0,0.00019779,2]
[346232098,1734791441708,-500.0,0.00019779,2]
[346232099,1734791441718,-500.0,0.00019779,2]
[346232100,1734791441727,-185.32516099,0.00019779,2]
[346232101,1734791441737,-500.0,0.00019779,2]
[346232102,1734791441747,-500.0,0.00019779,2]
[346232103,1734791441756,-500.0,0.00019779,2]
[346232104,1734791441766,-500.0,0.00019779,2]
[346232105,1734791441775,-500.0,0.00019779,2]
[346232106,1734791441784,-442.48421861,0.00019779,2]
[346232107,1734791441795,-500.0,0.00019779,2]
[346232108,1734791441805,-500.0,0.00019779,2]
[346232109,1734791441816,-508.285812,0.00019779,2]
[346232110,1734791441827,-500.0,0.00019779,2]
[346232111,1734791441838,-625.99187343,0.00019779,2]
[346232112,1734791441847,-500.0,0.00019779,2]
[346232113,1734791441857,-573.13,0.00019779,2]
[346232114,1734791441867,-500.0,0.00019779,2]
[346232115,1734791441876,-507.14370661,0.00019779,2]
[346232116,1734791441886,-500.0,0.00019779,2]
[346232117,1734791441896,-500.0,0.00019779,2]
[346232118,1734791441905,-500.0,0.00019779,2]
[346232119,1734791441915,-622.79474075,0.00019779,2]
[346232120,1734791441925,-500.0,0.00019779,2]
[346232121,1734791441935,-500.0,0.00019779,2]
[346232122,1734791441946,-500.0,0.00019779,2]
[346232123,1734791441956,-500.0,0.00019779,2]
[346232124,1734791441965,-500.0,0.00019779,2]
[346232125,1734791441974,-500.0,0.00019779,2]
[346232126,1734791441984,-500.0,0.00019779,2]
[346232127,1734791441994,-500.0,0.00019779,2]
[346232128,1734791442003,-397.52638064,0.00019779,2]
[346232129,1734791442013,-500.0,0.00019779,2]
[346232130,1734791442022,-500.0,0.00019779,2]
[346232131,1734791442032,-500.0,0.00019779,2]
[346232132,1734791442043,-500.0,0.00019779,2]
[346232133,1734791442053,-500.0,0.00019779,2]
[346232134,1734791442062,-500.0,0.00019779,2]
[346232135,1734791442072,-500.0,0.00019779,2]
[346232136,1734791442081,-428.51895968,0.00019779,2]
[346232137,1734791442254,-500.0,0.00019779,2]
[346232138,1734791442264,-509.51848254,0.00019779,2]
[346232139,1734791442275,-500.0,0.00019779,2]
[346232140,1734791442284,-500.0,0.00019779,2]
[346232141,1734791442296,-500.0,0.00019779,2]
[346232142,1734791442305,-500.0,0.00019779,2]
[346232143,1734791442315,-500.0,0.00019779,2]
[346232144,1734791442324,-500.0,0.00019779,2]
[346232145,1734791442333,-264.95255047,0.00019779,2]
[346232146,1734791442343,-501.98394564,0.00019779,2]
[346232148,1734791442352,-500.0,0.00019779,2]
[346232150,1734791442363,-513.02660001,0.00019779,2]
[346232152,1734791442373,-500.0,0.00019779,2]
[346232154,1734791442382,-500.0,0.00019779,2]
[346232155,1734791442391,-500.0,0.00019779,2]
[346232156,1734791442400,-588.41414884,0.00019779,2]
[346232157,1734791442410,-500.0,0.00019779,2]
[346232158,1734791442419,-500.0,0.00019779,2]
[346232159,1734791442428,-253.16499778,0.00019779,2]
[346232160,1734791442438,-500.0,0.00019779,2]
[346232162,1734791442447,-500.0,0.00019779,2]
[346232164,1734791442457,-500.0,0.00019779,2]
[346232166,1734791442466,-500.0,0.00019779,2]
[346232169,1734791442477,-500.0,0.00019779,2]
[346232173,1734791442487,-500.0,0.00019779,2]
[346232179,1734791442496,-500.0,0.00019779,2]
[346232184,1734791442506,-700.0,0.00019779,2]
[346232188,1734791442515,-500.0,0.00019779,2]
[346232191,1734791442525,-500.0,0.00019779,2]
[346232194,1734791442536,-500.0,0.00019779,2]
[346232195,1734791442546,-500.0,0.00019779,2]
[346232196,1734791442556,-500.0,0.00019779,2]
[346232197,1734791442565,-500.0,0.00019779,2]
[346232198,1734791442575,-500.0,0.00019779,2]
[346232199,1734791442585,-500.0,0.00019779,2]
[346232200,1734791442595,-500.0,0.00019779,2]
[346232201,1734791442603,-500.0,0.00019779,2]
[346232202,1734791442613,-513.9,0.00019779,2]
[346232203,1734791442622,-500.0,0.00019779,2]
[346232205,1734791442632,-500.0,0.00019779,2]
[346232206,1734791442642,-500.0,0.00019779,2]
[346232207,1734791442653,-500.0,0.00019779,2]
[346232208,1734791442662,-500.0,0.00019779,2]
[346232209,1734791442672,-500.0,0.00019779,2]
[346232210,1734791442682,-506.17308233,0.00019779,2]
[346232211,1734791442692,-500.0,0.00019779,2]
[346232212,1734791442702,-500.0,0.00019779,2]
[346232213,1734791442712,-500.0,0.00019779,2]
[346232214,1734791442722,-500.0,0.00019779,2]
[346232215,1734791442732,-500.0,0.00019779,2]
[346232216,1734791442742,-500.0,0.00019779,2]
[346232217,1734791442751,-500.0,0.00019779,2]
[346232218,1734791442761,-500.0,0.00019779,2]
[346232219,1734791442771,-500.0,0.00019779,2]
[346232220,1734791442781,-521.11712253,0.00019779,2]
[346232221,1734791442792,-500.0,0.00019779,2]
[346232222,1734791442802,-500.0,0.00019779,2]
[346232223,1734791442812,-500.0,0.00019779,2]
[346232224,1734791442821,-500.0,0.00019779,2]
[346232225,1734791442831,-500.0,0.00019779,2]
[346232226,1734791442841,-500.0,0.00019779,2]
[346232227,1734791442850,-500.0,0.00019779,2]
[346232228,1734791442860,-338.93664972,0.00019779,2]
[346232229,1734791442870,-500.0,0.00019779,2]
[346232230,1734791442879,-500.0,0.00019779,2]
[346232231,1734791442889,-500.0,0.00019779,2]
[346232232,1734791442898,-500.0,0.00019779,2]
[346232233,1734791442908,-500.0,0.00019779,2]
[346232234,1734791442917,-430.32506455,0.00019779,2]
[346232235,1734791442927,-553.50585804,0.00019779,2]
[346232236,1734791442936,-500.0,0.00019779,2]
[346232237,1734791442946,-500.0,0.00019779,2]
[346232238,1734791442956,-512.85,0.00019779,2]
[346232239,1734791442965,-500.0,0.00019779,2]
[346232240,1734791442975,-500.0,0.00019779,2]
[346232241,1734791442984,-500.0,0.00019779,2]
[346232242,1734791442993,-546.23,0.00019779,2]
[346232243,1734791443003,-334.37,0.00019779,2]
[346232244,1734791443012,-500.0,0.00019779,2]
[346232245,1734791443022,-500.0,0.00019779,2]
[346232246,1734791443031,-500.0,0.00019779,2]
[346232247,1734791443042,-808.62,0.00019779,2]
[346232248,1734791443051,-500.0,0.00019779,2]
[346232249,1734791443060,-500.0,0.00019779,2]
[346232250,1734791443070,-512.52,0.00019779,2]
[346232251,1734791443080,-500.0,0.00019779,2]
[346232252,1734791443089,-267.3487681,0.00019779,2]
[346232253,1734791443099,-1290.4,0.00019779,2]
[346232254,1734791443109,-1099.68,0.00019779,2]
[346232255,1734791443118,-500.0,0.00019779,2]
[346232256,1734791443127,-1843.91,0.00019779,2]
[346232257,1734791443136,-506.39769217,0.00019779,2]
[346232258,1734791443146,-500.0,0.00019779,2]
[346232259,1734791443156,-500.0,0.00019779,2]
[346232260,1734791443165,-865.68,0.00019779,2]
[346232261,1734791443174,-577.52,0.00019779,2]
[346232262,1734791443183,-500.0,0.00019779,2]
[346232263,1734791443194,-500.0,0.00019779,2]
[346232264,1734791443205,-500.0,0.00019779,2]
[346232265,1734791443215,-500.0,0.00019779,2]
[346232266,1734791443225,-500.0,0.00019779,2]
[346232267,1734791443234,-500.0,0.00019779,2]
[346232268,1734791443246,-500.0,0.00019779,2]
[346232269,1734791443255,-500.0,0.00019779,2]
[346232270,1734791443265,-559.84,0.00019779,2]
[346232271,1734791443277,-500.0,0.00019779,2]
[346232272,1734791443286,-1201.63546116,0.00019779,2]
[346232273,1734791443303,-929.08997,0.00019779,2]
[346232274,1734791443319,-427.77,0.00019178,2]
[346232275,1734791443335,-72.23,0.00019178,2]
[346232276,1734791443344,-212.56456884,0.00019779,2]
[346232277,1734791443354,-500.0,0.00019779,2]
[346232278,1734791443366,-500.0,0.00019779,2]
[346232279,1734791443375,-28.3176178,0.00019779,2]
[346232280,1734791443656,-2927.63798674,0.00018875,2]
[346232281,1734791443669,-10624.13711136,0.00018875,2]
[346232282,1734791443679,-397.83285584,0.00019359,2]
[346232283,1734791443689,-502.79,0.00019571,2]
[346232284,1734791443698,-500.0,0.00019571,2]
[346232285,1734791443708,-571.8223822,0.00019779,2]
[346232286,1734791443718,-500.0,0.00019779,2]
[346232287,1734791443728,-342.75040856,0.00019779,2]
[346232288,1734791443739,-500.0,0.00019779,2]
[346232289,1734791443749,-528.39,0.00019779,2]
[346232290,1734791443759,-604.94918489,0.00019779,2]
[346232291,1734791443770,-500.0,0.00019779,2]
[346232292,1734791443779,-859.24193394,0.00019779,2]
[346232293,1734791443794,-579.91806606,0.00019779,2]
[346232294,1734791443805,-500.0,0.00019779,2]
[346232295,1734791443816,-500.0,0.00019779,2]
[346232296,1734791443826,-500.0,0.00019779,2]
[346232297,1734791443836,-500.0,0.00019779,2]
[346232298,1734791443845,-500.0,0.00019779,2]
[346232299,1734791443854,-500.0,0.00019779,2]
[346232300,1734791443863,-529.63291571,0.00019779,2]
[346232301,1734791443878,-263.03708429,0.00019779,2]
[346232302,1734791443888,-500.0,0.00019779,2]
[346232303,1734791443897,-1221.55,0.00019779,2]
[346232304,1734791443906,-222.73983779,0.00019779,2]
[346232305,1734791443916,-8768.4388679,0.0001978,2]
[346232306,1734791443927,-151.0,0.0001978,2]
[346232307,1734791443937,-151.0,0.0001978,2]
[346232308,1734791443946,-151.0,0.0001978,2]
[346232309,1734791443956,-1238.29895,0.0001978,2]
[346232310,1734791443966,-1200.0,0.000198,7]
[346232311,1734791443975,-15457.4024711,0.00019821,2]
[346232312,1734791444000,-151.0,0.0001978,2]
[346232313,1734791444010,-4896.81534891,0.00019821,2]
[346232314,1734791444019,-666.0,0.00019844,2]
[346232315,1734791444029,-500.0,0.00019845,2]
[346232316,1734791444041,-500.0,0.00019845,2]
[346232317,1734791444050,-500.0,0.00019845,2]
[346232318,1734791444059,-500.0,0.00019845,2]
[346232319,1734791444069,-249.51,0.00019845,2]
[346232320,1734791444078,-500.0,0.00019845,2]
[346232321,1734791444088,-500.0,0.00019845,2]
[346232322,1734791444097,-500.0,0.00019845,2]
[346232323,1734791444108,-500.0,0.00019845,2]
[346232324,1734791444117,-500.0,0.00019845,2]
[346232325,1734791444127,-500.0,0.00019845,2]
[346232326,1734791444136,-500.0,0.00019845,2]
[346232327,1734791444145,-500.0,0.00019845,2]
[346232328,1734791444155,-500.0,0.00019845,2]
[346232329,1734791444164,-500.0,0.00019845,2]
[346232330,1734791444173,-500.0,0.00019845,2]
[346232331,1734791444183,-500.0,0.00019845,2]
[346232332,1734791444194,-500.0,0.00019845,2]
[346232333,1734791444205,-500.0,0.00019845,2]
[346232334,1734791444215,-500.0,0.00019845,2]
[346232335,1734791444224,-500.0,0.00019845,2]
[346232336,1734791444235,-500.0,0.00019845,2]
[346232337,1734791444244,-500.0,0.00019845,2]
[346232338,1734791444253,-500.0,0.00019845,2]
[346232339,1734791444263,-500.0,0.00019845,2]
[346232340,1734791444273,-500.0,0.00019845,2]
[346232341,1734791444283,-500.0,0.00019845,2]
[346232342,1734791444295,-500.0,0.00019845,2]
[346232343,1734791444304,-500.0,0.00019845,2]
[346232344,1734791444314,-176.76334591,0.00019845,2]
[346232345,1734791444323,-500.0,0.00019845,2]
[346232346,1734791444333,-500.0,0.00019845,2]
[346232347,1734791444343,-500.0,0.00019845,2]
[346232348,1734791444353,-500.0,0.00019845,2]
[346232349,1734791444362,-477.72700518,0.00019845,2]
[346232360,1734791445637,-400.5853,0.0001978,2]
[346232361,1734791445680,-500.0,0.00019178,2]
[346232362,1734791445690,-290.728592,0.0001978,2]
[346232363,1734791445699,-22.27299482,0.00019845,2]
[346232364,1734791445708,-314.29841174,0.00019845,2]
[346232365,1734791445719,-185.70158826,0.00019845,2]
[346232366,1734791445730,-67.00779068,0.00019845,2]
[346232367,1734791445741,-395.28996876,0.00019845,2]
[346232368,1734791445751,-55.31224056,0.00019845,2]
[346232369,1734791445760,-500.0,0.00019845,2]
[346232370,1734791445769,-225.86563229,0.00019845,2]
[346232371,1734791445905,-274.13436771,0.00019845,2]
[346232372,1734791445914,-500.0,0.00019845,2]
[346232373,1734791445923,-500.0,0.00019845,2]
[346232374,1734791445932,-1002.3,0.00019845,2]
[346232375,1734791445941,-500.0,0.00019845,2]
[346232376,1734791445950,-20.31141566,0.00019845,2]
[346232377,1734791445961,-479.68858434,0.00019845,2]
[346232378,1734791445970,-646.21140566,0.00019845,2]
[346232380,1734791614576,154.68,0.00010137,2]
[346232382,1734792004693,655.04,0.00016312,2]
[346232383,1734792354867,165.13,0.00017893,2]
[346232384,1734792398602,314.29,0.00018121,30]
[346232385,1734792472255,2129.97,0.00017868,2]
[346232386,1734792500919,192.09,0.00010137,2]
[346232387,1734792501112,192.09,0.00016813,2]
[346232389,1734792533160,500.0,0.00017889,2]
[346232390,1734792607901,250.0,0.00017857,2]
[346232397,1734792631920,-5646.58959978,0.00018052,2]
[346232398,1734792632680,-625.72040022,0.00018052,2]
[346232399,1734792632691,-250.0,0.00018075,2]
[346232400,1734792632701,-1000.0,0.00018129,2]
[346232401,1734792632717,-250.0,0.00018163,2]
[346232402,1734792632727,-696.43,0.00018168,2]
[346232403,1734792632737,-164.91,0.00018297,2]
[346232404,1734792632747,-300.0,0.00018381,2]
[346232405,1734792632757,-2751.0,0.00018382,2]
[346232406,1734792632766,-150.0,0.00018411,2]
[346232407,1734792632776,-500.0,0.0001845,2]
[346232408,1734792632785,-804.62,0.00018485,2]
[346232409,1734792632794,-23900.0,0.00018492,2]
[346232410,1734792632803,-655.04,0.00018576,2]
[346232411,1734792632812,-150.0,0.000186,2]
[346232412,1734792632821,-150.0,0.000186,2]
[346232413,1734792632829,-150.0,0.000186,2]
[346232414,1734792632838,-609.65640882,0.0001861,2]
[346232415,1734792632847,-1375.79820623,0.00018709,2]
[346232416,1734792632856,-1000.0,0.0001871,2]
[346232417,1734792632865,-494.85,0.0001871,2]
[346232418,1734792632874,-509.28,0.0001871,2]
[346232419,1734792632882,-950.5187,0.0001871,2]
[346232420,1734792632891,-498.76,0.0001871,2]
[346232421,1734792632900,-493.02,0.0001871,2]
[346232422,1734792632909,-9805.0099,0.0001871,2]
[346232423,1734792632918,-509.78,0.0001871,2]
[346232424,1734792632927,-505.45,0.0001871,2]
[346232425,1734792632937,-502.19,0.0001871,2]
[346232426,1734792632946,-496.61,0.0001871,2]
[346232427,1734792632958,-491.96,0.0001871,2]
[346232428,1734792632967,-492.6,0.0001871,2]
[346232429,1734792632976,-495.76,0.0001871,2]
[346232430,1734792632985,-495.29,0.0001871,2]
[346232431,1734792632994,-500.22,0.0001871,2]
[346232432,1734792633003,-400.4626,0.0001874,2]
[346232433,1734792633012,-502.4,0.00018824,2]
[346232434,1734792633021,-1416.21,0.00018847,2]
[346232435,1734792633030,-300.0,0.00018878,2]
[346232436,1734792633040,-508.12,0.0001888,2]
[346232449,1734792633271,-626.522,0.0001898,2]
[346232451,1734792633282,-2739.0,0.00019,2]
[346232453,1734792633292,-503.88,0.00019003,2]
[346232455,1734792633303,-18610.82334038,0.00019078,2]
[346232457,1734792633313,-596.831,0.00019155,2]
[346232459,1734792633323,-18610.82334038,0.00019167,2]
[346232461,1734792633334,-500.0,0.00019177,2]
[346232463,1734792633344,-1000.0,0.00019177,2]
[346232466,1734792633356,-500.0,0.00019178,2]
[346232467,1734792633366,-412.70987635,0.00019178,2]
[346232469,1734792633376,-500.0,0.00019178,2]
[346232472,1734792633387,-500.0,0.00019178,2]
[346232474,1734792633398,-500.0,0.00019178,2]
[346232475,1734792633407,-500.0,0.00019178,2]
[346232476,1734792633418,-500.0,0.00019178,2]
[346232477,1734792633428,-500.0,0.00019178,2]
[346232478,1734792633438,-500.0,0.00019178,2]
[346232479,1734792633448,-500.0,0.00019178,2]
[346232480,1734792633461,-500.0,0.00019178,2]
[346232481,1734792633471,-500.0,0.00019178,2]
[346232482,1734792633481,-700.0,0.00019178,2]
[346232483,1734792633490,-500.0,0.00019178,2]
[346232484,1734792633500,-500.0,0.00019178,2]
[346232485,1734792633509,-500.0,0.00019178,2]
[346232486,1734792633519,-500.0,0.00019178,2]
[346232487,1734792633528,-500.0,0.00019178,2]
[346232488,1734792633537,-506.30426781,0.00019178,2]
[346232489,1734792633550,-500.0,0.00019178,2]
[346232490,1734792633561,-500.0,0.00019178,2]
[346232491,1734792633571,-500.0,0.00019178,2]
[346232492,1734792633581,-500.0,0.00019178,2]
[346232493,1734792633592,-500.0,0.00019178,2]
[346232494,1734792633602,-500.0,0.00019178,2]
[346232495,1734792633611,-500.0,0.00019178,2]
[346232496,1734792633622,-500.0,0.00019178,2]
[346232497,1734792633633,-500.0,0.00019178,2]
[346232498,1734792633642,-500.0,0.00019178,2]
[346232499,1734792633652,-500.0,0.00019178,2]
[346232500,1734792633663,-500.0,0.00019178,2]
[346232501,1734792633673,-500.0,0.00019178,2]
[346232502,1734792633683,-500.0,0.00019178,2]
[346232503,1734792633693,-500.0,0.00019178,2]
[346232504,1734792633703,-500.0,0.00019178,2]
[346232505,1734792633719,-500.0,0.00019178,2]
[346232506,1734792633729,-500.0,0.00019178,2]